Cogmind - Beta 16 @@@ ROGUE MODE // 2026.01.22 @ 21:16:34 Player: Artackni Result: Destroyed by C-57 Dissector with Dual-blade Saw Performance ------------- Evolutions (8) 4000 Regions Visited (10) 2000 Robots Destroyed (12) 60 Value Destroyed (197) 197 Prototype IDs (6) 120 Alien Tech Used (0) 0 Bonus (700) 700 TOTAL SCORE: 7077 Bonus ------- Pacifist 200 Entered DSFs 500 Cogmind --------- Core Integrity 0/1450 Matter 95/300 Energy 100/100 System Corruption 15% Temperature Cool (0) Movement Core (50) Location -2/Research Parts ------- > --- POWER (2) -------- (None) > --- PROPULSION (8) --- (None) > --- UTILITY (11) ----- Hacking Suite > --- WEAPON (2) ------- (None) > --- INVENTORY (5) ---- Cesium-ion Thruster Field Propulsion Drive Stealth Drone Bay (2/2) Peak State ------------ > --- POWER ------------ Light Antimatter Reactor Micro Antimatter Reactor > --- PROPULSION ------- Cesium-ion Thruster Xenon Bombardment Thruster Cooled Field Propulsion Drive Impulse Thruster Array Impulse Thruster Array > --- UTILITY ---------- Improved Sensor Array Improved Signal Interpreter Advanced Signal Interpreter Hacking Suite Hacking Suite Improved System Guard Stealth Drone Bay Stealth Drone Bay > --- WEAPON ----------- Chainsword > --- INVENTORY -------- Light Particle Reactor Experimental Target Analyzer Variable Charge Gun Assault Cannon [Rating: 124] Favorites ----------- Power Light Angular Momentum Engine Engine Light Angular Momentum Engine Power Core Improved Fusion Compressor Reactor Micro Antimatter Reactor Propulsion Cesium-ion Thruster Flight Unit Cesium-ion Thruster Utility System Shield Device Improved Sensor Array Processor Improved Signal Interpreter Hackware System Shield Weapon Chainsword Ballistic Cannon Assault Cannon Impact Weapon Flail Slashing Weapon Chainsword Build | -11 -10 -9 -8 -7 -7 -6 -5 -4 -3 -2 ------- Run | Yrd Mat Mat Mat Fac DSF Fac Fac Fac Res Res Slots Evolved 16 | . . 2 2 2 . 2 2 2 2 2 Power 1 | . . . . . . . 1 . . . Propulsion 6 | . . 1 1 . . 1 1 1 . 1 Utility 9 | . . 1 1 2 . 1 . 1 2 1 Weapon . | . . . . . . . . . . . Parts Attached 58 | . 1 7 2 . 7 6 2 6 24 3 Power 10 | . 1 1 . . 1 1 . . 5 1 Engine 4 | . 1 1 . . 1 1 . . . . Core 1 | . . . . . . . . . 1 . Reactor 5 | . . . . . . . . . 4 1 Propulsion 23 | . . 2 1 . 5 1 1 2 10 1 Treads . | . . . . . . . . . . . Leg . | . . . . . . . . . . . Wheel . | . . . . . . . . . . . Hover . | . . . . . . . . . . . Flight 23 | . . 2 1 . 5 1 1 2 10 1 Utility 22 | . . 3 1 . 1 4 1 2 9 1 Device 7 | . . . . . . 3 1 1 2 . Storage . | . . . . . . . . . . . Processor 6 | . . . 1 . . . . 1 4 . Hackware 9 | . . 3 . . 1 1 . . 3 1 Protection . | . . . . . . . . . . . Artifact . | . . . . . . . . . . . Weapon 3 | . . 1 . . . . . 2 . . Energy Gun . | . . . . . . . . . . . Energy Cannon . | . . . . . . . . . . . Ballistic Gun . | . . . . . . . . . . . Ballistic Cannon 1 | . . . . . . . . 1 . . Launcher . | . . . . . . . . . . . Special Weapon . | . . . . . . . . . . . Impact Weapon 1 | . . 1 . . . . . . . . Slashing Weapon 1 | . . . . . . . . 1 . . Piercing Weapon . | . . . . . . . . . . . Special Melee Weapon . | . . . . . . . . . . . Unidentified Prototypes 4 | . . . . . . . . 1 3 . Parts Lost 36 | . . 2 1 . 2 . . 5 18 8 Power 7 | . . . 1 . . . . . 4 2 Propulsion 14 | . . . . . 1 . . 1 9 3 Utility 14 | . . 2 . . 1 . . 4 5 2 Weapon 1 | . . . . . . . . . . 1 Highest Loss Streak 8 | . . 2 1 . 2 . . 3 8 5 To Critical Strikes . | . . . . . . . . . . . Average Backups 3 | . . 2 4 5 5 4 4 4 3 3 Power . | . . 2 1 1 . . 1 . . . Propulsion . | . . . . . . 2 1 . 1 2 Utility . | . . . 1 2 1 1 1 1 . 1 Weapon 1 | . . . 1 2 1 1 1 1 1 . Tool/Special . | . . . . . . . . . . . Unused Backups 5 | . . . . . 1 . . 1 2 1 Power 1 | . . . . . . . . . 1 . Propulsion 1 | . . . . . . . . . . 1 Utility 1 | . . . . . . . . 1 . . Weapon 2 | . . . . . 1 . . . 1 . Tool/Special . | . . . . . . . . . . . Average Slot Usage (%) 58 | . 8 13 56 46 53 67 84 86 72 53 Engine 3 | . 8 4 8 . 2 6 5 8 1 . Reactor 2 | . . . . . . . . . 6 4 Flight 22 | . . 1 22 23 26 33 35 34 26 16 Device 7 | . . . . . . 7 19 20 9 . Processor 7 | . . . 8 7 7 6 5 7 11 15 Hackware 9 | . . 5 9 7 8 6 11 9 11 14 Impact Weapon 2 | . . 2 9 7 7 6 5 . . . Slashing Weapon 1 | . . . . . . . . 3 4 1 Peak Build Rating 124 | . 1 10 16 13 27 47 53 73 124 106 Average Rating 53 | . . 3 14 13 19 35 51 64 94 76 On Entrance 29 | . . 1 10 13 13 24 47 53 62 97 Avg Prop Armor Cover (%) 4 | . . . . . . . 3 5 6 . Naked Turns 70 | . 12 58 . . . . . . . . Heaviest Build 40 | . 3 7 7 2 7 23 24 30 40 30 Greatest Support 50 | 3 3 8 12 12 20 23 25 36 50 42 Greatest Overweight (x) 1 | . . . . . . . . . 1 . Average Overweight (x) . | . . . . . . . . . . . Largest Inventory Capacity 5 | 5 5 5 5 5 5 5 5 5 5 5 Average Capacity 5 | 5 5 5 5 5 5 5 5 5 5 5 Most Carried 5 | . . 5 5 5 5 5 5 5 5 5 Average Carried 3 | . . 3 4 5 4 4 4 3 4 4 Final Capacity 5 | 5 5 5 5 5 5 5 5 5 5 5 Final Carried 5 | . . 3 5 5 5 5 5 4 5 4 Class Distribution -------------------- 53% | Hacker-Sprinter 23% | Mutant 19% | Sprinter 4% | Hacker-Mutant Dominant Class ---------------- Mutant | -10/Materials Mutant | -9/Materials Sprinter | -8/Materials Sprinter | -7/Factory Sprinter | -7/DSF Sprinter | -6/Factory Hacker-Sprinter | -5/Factory Hacker-Sprinter | -4/Factory Hacker-Sprinter | -3/Research Hacker-Sprinter | -2/Research Resources | -11 -10 -9 -8 -7 -7 -6 -5 -4 -3 -2 ----------- Run | Yrd Mat Mat Mat Fac DSF Fac Fac Fac Res Res Matter Collected 420 | 200 . 22 39 . . . . 50 53 56 Remotely . | . . . . . . . . . . . Salvage Created 237 | . . 58 42 . . . . 93 44 . Parts 23 | . . 4 2 . . . . 10 7 . Haulers Intercepted 1 | . . . 1 . . . . . . . Recyclers Shooed . | . . . . . . . . . . . Parts Field Recycled . | . . . . . . . . . . . Retrieved Matter . | . . . . . . . . . . . Parts Self-Destructed . | . . . . . . . . . . . Prevented . | . . . . . . . . . . . Parts Restored . | . . . . . . . . . . . Kills | -11 -10 -9 -8 -7 -7 -6 -5 -4 -3 -2 ------- Run | Yrd Mat Mat Mat Fac DSF Fac Fac Fac Res Res Combat Hostiles Destroyed 8 | . . 4 . . . . . 4 . . Melee 2 | . . 2 . . . . . . . . Cannons 4 | . . . . . . . . 4 . . Classes Destroyed 4 | . . 1 1 . . . . 1 1 . Builder 2 | . . . . . . . . 1 1 . Tunneler 1 | . . . . . . . . . 1 . Hauler 1 | . . . 1 . . . . . . . Swarmer 8 | . . 4 . . . . . 4 . . Best Kill Streak 4 | . . 4 1 . . . . 4 1 . Combat Bots Only 4 | . . 4 . . . . . 4 . . Max Kills in Single Turn 1 | . . 1 1 . . . . 1 1 . Gunslinging . | . . . . . . . . . . . Exploded . | . . . . . . . . . . . Melee 1 | . . 1 . . . . . . . . Uniques/NPCs Destroyed . | . . . . . . . . . . . Combat | -11 -10 -9 -8 -7 -7 -6 -5 -4 -3 -2 -------- Run | Yrd Mat Mat Mat Fac DSF Fac Fac Fac Res Res Hostile Shots Fired 372 | . 4 59 20 . 5 . 4 33 115 132 Missed 166 | . 1 28 10 . 4 . 2 14 51 56 Hits 206 | . 3 31 10 . 1 . 2 19 64 76 Melee 21 | . . . . . . . . . . 21 Projectile 185 | . 3 31 10 . 1 . 2 19 64 55 AOE 3 | . . . . . 2 . . . . 1 Critical Strikes 17 | . . . . . . . . . 8 9 Damage Taken 4582 | . 34 381 133 . 63 . 37 433 1573 1928 Core 2200 | . 22 302 49 . . . 37 14 291 1485 Absorbed by Shields . | . . . . . . . . . . . Core Remaining (%) 86 | 100 91 24 91 . 100 100 96 98 77 . Volleys Fired 8 | . . . . . . . . 8 . . Largest 1 | . . . . . . . . 1 . . Hottest 37 | . . . . . . . . 37 . . Shots Fired 8 | . . . . . . . . 8 . . Gun . | . . . . . . . . . . . Cannon 8 | . . . . . . . . 8 . . Launcher . | . . . . . . . . . . . Special . | . . . . . . . . . . . Kinetic 8 | . . . . . . . . 8 . . Thermal . | . . . . . . . . . . . Explosive . | . . . . . . . . . . . Electromagnetic . | . . . . . . . . . . . Robot Hit Streak 1 | . . . . . . . . 1 . . Robot Miss Streak 1 | . . . . . . . . 1 . . Penetration Max . | . . . . . . . . . . . Secondary Targets . | . . . . . . . . . . . Shots Hit Robots 11 | . . 4 1 . . . . 4 2 . Core Hits 11 | . . 4 1 . . . . 4 2 . Critical Kills . | . . . . . . . . . . . Critical Parts Destroyed 1 | . . 1 . . . . . . . . Critical Strikes 2 | . . 1 . . . . . 1 . . Blast 1 | . . . . . . . . 1 . . Smash 1 | . . 1 . . . . . . . . Melee Attacks 28 | . . 8 3 . . . 1 10 6 . Impact 12 | . . 8 3 . . . 1 . . . Slashing 16 | . . . . . . . . 10 6 . Piercing . | . . . . . . . . . . . Sneak Attacks 4 | . . . 1 . . . . 1 2 . Combat Hostiles . | . . . . . . . . . . . Follow-up Attacks . | . . . . . . . . . . . Damage Inflicted 761 | . . 150 67 . . . . 347 188 9 Guns . | . . . . . . . . . . . Cannons 105 | . . . . . . . . 105 . . Explosions 101 | . . . . . . . . 101 . . Melee 502 | . . 106 67 . . . . 141 188 . Ramming 53 | . . 44 . . . . . . . 9 Kinetic 105 | . . . . . . . . 105 . . Thermal 101 | . . . . . . . . 101 . . Explosive . | . . . . . . . . . . . Electromagnetic . | . . . . . . . . . . . Impact 173 | . . 106 67 . . . . . . . Slashing 329 | . . . . . . . . 141 188 . Piercing . | . . . . . . . . . . . Highest Corruption 15 | . . 6 . . 4 . . 7 2 15 Average Corruption 4 | . . 5 . . 4 . . 7 2 11 Corruption Purged . | . . . . . . . . . . . Corruption Blocked . | . . . . . . . . . . . Effects 2 | . . 1 . . . . . . . 1 Energy Discharges 2 | . . 1 . . . . . . . 1 Overload Shots . | . . . . . . . . . . . Overflow Damage 126 | . . 30 . . . . . 96 . . Projectiles 1 | . . . . . . . . 1 . . Explosions 51 | . . . . . . . . 51 . . Melee 74 | . . 30 . . . . . 44 . . Knockbacks . | . . . . . . . . . . . Impact . | . . . . . . . . . . . Kinetic . | . . . . . . . . . . . Secondary . | . . . . . . . . . . . Self-Inflicted Damage 24 | . . 20 . . . . . . . 4 Shots . | . . . . . . . . . . . Rammed 13 | . . 8 . . . . . . . 5 Targets Rammed 13 | . . 8 . . . . . . . 5 Kicked . | . . . . . . . . . . . Crushed . | . . . . . . . . . . . Highest Temperature 208 | . . . . . . . 1 . 208 20 Average Temperature 68 | . . . . . . . 1 . 75 7 Received Heat Transfer 270 | . 18 27 63 . . . 9 18 108 27 Siege Activations . | . . . . . . . . . . . Martial Activations . | . . . . . . . . . . . Shielding Activations . | . . . . . . . . . . . Robots Disrupted . | . . . . . . . . . . . Combat Hostiles . | . . . . . . . . . . . Robots Corrupted 2 | . . 2 . . . . . . . . Combat Hostiles 2 | . . 2 . . . . . . . . Parts Fried 2 | . . 2 . . . . . . . . Impact Corruptions 3 | . . 3 . . . . . . . . Robots Melted . | . . . . . . . . . . . Combat Hostiles . | . . . . . . . . . . . Parts Melted . | . . . . . . . . . . . Heat Transferred 50 | . . . . . . . . 50 . . Parts Sabotaged . | . . . . . . . . . . . Parts Stolen . | . . . . . . . . . . . Parts Stripped . | . . . . . . . . . . . Power Chain Reactions . | . . . . . . . . . . . Alert | -11 -10 -9 -8 -7 -7 -6 -5 -4 -3 -2 ------- Run | Yrd Mat Mat Mat Fac DSF Fac Fac Fac Res Res Maximum Alert Level 1 | . . . . . . . . 1 . 1 Low Security (%) 91 | 100 100 100 100 100 100 100 100 48 100 86 Level 1 8 | . . . . . . . . 51 . 13 Level 2 . | . . . . . . . . . . . Level 3 . | . . . . . . . . . . . Level 4 . | . . . . . . . . . . . Level 5 . | . . . . . . . . . . . High Security . | . . . . . . . . . . . Max Security . | . . . . . . . . . . . Peak Influence 298 | . 9 130 100 30 39 39 95 285 175 298 Initial 149 | . . . 50 30 24 9 4 41 149 79 Average 89 | . 4 35 76 30 29 20 25 174 128 112 Influence Increases 1548 | . 14 225 68 5 15 30 105 364 363 359 Destroy 0b10 Robot/C 160 | . . 80 . . . . . 80 . . Destroy 0b10 Robot/NC 20 | . . . 5 . . . . 5 10 . Destroy Leader 22 | . . 10 2 . . . . 10 . . Successful Hack 33 | . 14 . . 5 . . . . . 14 Disable Machine 45 | . . . . . . . 15 30 . . Destroy Structure 83 | . . . 1 . . . . 74 8 . Partial Spotted 150 | . . 30 . . . 30 . . 75 15 Lose Combat Pursuer 1035 | . . 105 60 . 15 . 90 165 270 330 Influence Decreases 1260 | . 14 105 120 38 31 40 29 164 506 213 Entered New Map 377 | . . . 70 38 11 10 5 44 136 63 Time Decay 513 | . 14 85 40 . . 30 24 70 180 70 Lost Part 360 | . . 20 10 . 20 . . 50 180 80 Lost Ally 10 | . . . . . . . . . 10 . Squads Dispatched 15 | . . . . . 2 . . 1 7 5 Investigation . | . . . . . . . . . . . Extermination 5 | . . . . . . . . 1 3 1 Reinforcement 10 | . . . . . 2 . . . 4 4 Assault . | . . . . . . . . . . . Garrison . | . . . . . . . . . . . Intercept . | . . . . . . . . . . . Searches Triggered . | . . . . . . . . . . . Construction Impeded . | . . . . . . . . . . . Haulers Reinforced . | . . . . . . . . . . . Active Scanning Responses . | . . . . . . . . . . . Cargo Convoy Interrupts . | . . . . . . . . . . . Stealth | -11 -10 -9 -8 -7 -7 -6 -5 -4 -3 -2 --------- Run | Yrd Mat Mat Mat Fac DSF Fac Fac Fac Res Res Distress Signals 12 | . . . 1 . . . 1 2 2 6 Communications Jammed . | . . . . . . . . . . . Distress Signals . | . . . . . . . . . . . Times Spotted 149 | . 2 14 12 . 7 1 4 21 40 48 Peak Tracking Total 28 | . 2 9 12 . 6 1 7 15 15 28 Tactical Retreats 24 | . . 4 1 . 1 . 2 4 8 4 Traps | -11 -10 -9 -8 -7 -7 -6 -5 -4 -3 -2 ------- Run | Yrd Mat Mat Mat Fac DSF Fac Fac Fac Res Res Traps Triggered 6 | . . 1 . . 3 . . . . 2 Indirectly . | . . . . . . . . . . . Trap Hack Attempts . | . . . . . . . . . . . Triggered . | . . . . . . . . . . . Disarmed . | . . . . . . . . . . . Reprogrammed . | . . . . . . . . . . . Reused . | . . . . . . . . . . . Traps Extracted . | . . . . . . . . . . . Installed . | . . . . . . . . . . . Triggered . | . . . . . . . . . . . Machines | -11 -10 -9 -8 -7 -7 -6 -5 -4 -3 -2 ---------- Run | Yrd Mat Mat Mat Fac DSF Fac Fac Fac Res Res Machines Disabled 3 | . . . . . . . 1 2 . . Max in Single Turn 2 | . . . . . . . 1 2 . . Machines Repaired . | . . . . . . . . . . . Machines Dismantled . | . . . . . . . . . . . Machines Sabotaged . | . . . . . . . . . . . Overloaded Fab Kills . | . . . . . . . . . . . Hacking | -11 -10 -9 -8 -7 -7 -6 -5 -4 -3 -2 --------- Run | Yrd Mat Mat Mat Fac DSF Fac Fac Fac Res Res Machines Accessed 11 | . 3 . 2 1 . 1 1 . 1 2 Terminals 10 | . 3 . 2 1 . . 1 . 1 2 Fabricators . | . . . . . . . . . . . Repair Stations . | . . . . . . . . . . . Recycling Units 1 | . . . . . . 1 . . . . Scanalyzers . | . . . . . . . . . . . Garrison Access . | . . . . . . . . . . . Total Hacks 19 | . 4 . 4 1 . 2 1 . 2 5 Successful 6 | . 3 . . 1 . . . . 1 1 Failed 13 | . 1 . 4 . . 2 1 . 1 4 Catastrophic 5 | . 1 . 2 . . 1 . . . 1 Database Lockouts . | . . . . . . . . . . . Manual 12 | . 2 . 4 . . . 1 . 2 3 Terminals 17 | . 4 . 4 1 . . 1 . 2 5 Fabricators . | . . . . . . . . . . . Repair Stations . | . . . . . . . . . . . Recycling Units 2 | . . . . . . 2 . . . . Scanalyzers . | . . . . . . . . . . . Garrison Access . | . . . . . . . . . . . Terminal Hacks 5 | . 3 . . 1 . . . . . 1 Prototype ID Bank 1 | . 1 . . . . . . . . . Open DSF 1 | . . . . 1 . . . . . . Level Access Points 2 | . 1 . . . . . . . . 1 Locate Traps 1 | . 1 . . . . . . . . . Fabricator Hacks . | . . . . . . . . . . . Repair Station Hacks . | . . . . . . . . . . . Recycling Unit Hacks . | . . . . . . . . . . . Scanalyzer . | . . . . . . . . . . . Garrison Access Hacks . | . . . . . . . . . . . Unauthorized Hacks 1 | . . . . . . . . . 1 . Terminals 1 | . . . . . . . . . 1 . Assimilate 1 | . . . . . . . . . 1 . Fabricators . | . . . . . . . . . . . Repair Stations . | . . . . . . . . . . . Recycling Units . | . . . . . . . . . . . Scanalyzers . | . . . . . . . . . . . Garrison Access . | . . . . . . . . . . . Data Cores Recovered . | . . . . . . . . . . . Used . | . . . . . . . . . . . Hacking Detections 7 | . 1 . 2 . . 1 . . 1 2 Full Trace Events . | . . . . . . . . . . . Feedback Events . | . . . . . . . . . . . Feedback Blocked . | . . . . . . . . . . . Robot Schematics Acquired . | . . . . . . . . . . . Robots Built . | . . . . . . . . . . . Authchips . | . . . . . . . . . . . Time . | . . . . . . . . . . . Total Robot Build Rating . | . . . . . . . . . . . Part Schematics Acquired . | . . . . . . . . . . . Parts Built . | . . . . . . . . . . . Authchips . | . . . . . . . . . . . Time . | . . . . . . . . . . . Total Part Build Rating . | . . . . . . . . . . . Part Studies Acquired . | . . . . . . . . . . . Parts Repaired . | . . . . . . . . . . . Time . | . . . . . . . . . . . Parts Recycled . | . . . . . . . . . . . Recycled Matter . | . . . . . . . . . . . Retrieved Matter . | . . . . . . . . . . . Retrieved Components . | . . . . . . . . . . . Parts Scanalyzed . | . . . . . . . . . . . Part Schematics Acquired . | . . . . . . . . . . . Parts Damaged . | . . . . . . . . . . . Bothacking | -11 -10 -9 -8 -7 -7 -6 -5 -4 -3 -2 ------------ Run | Yrd Mat Mat Mat Fac DSF Fac Fac Fac Res Res Used RIF Installer . | . . . . . . . . . . . Robots Hacked . | . . . . . . . . . . . Non-combat . | . . . . . . . . . . . Combat . | . . . . . . . . . . . Robot Hacks Applied . | . . . . . . . . . . . Relay Couplers Released . | . . . . . . . . . . . Fabnet Peak Effective % . | . . . . . . . . . . . Robots Rewired . | . . . . . . . . . . . Allies Hacked . | . . . . . . . . . . . Hacks Repelled . | . . . . . . . . . . . Allies | -11 -10 -9 -8 -7 -7 -6 -5 -4 -3 -2 -------- Run | Yrd Mat Mat Mat Fac DSF Fac Fac Fac Res Res Total Allies 1 | . . . . . . . . . 1 . Largest Group 1 | . . . . . . . . . 1 . Highest-Rated Group 45 | . . . . . . . . . 45 . Highest-Rated Ally 45 | . . . . . . . . . 45 . Total Orders 1 | . . . . . . . . . 1 . EXPLORE 1 | . . . . . . . . . 1 . Ally Attacks . | . . . . . . . . . . . Total Damage . | . . . . . . . . . . . Kills . | . . . . . . . . . . . Allies Corrupted . | . . . . . . . . . . . Allies Melted . | . . . . . . . . . . . Intel | -11 -10 -9 -8 -7 -7 -6 -5 -4 -3 -2 ------- Run | Yrd Mat Mat Mat Fac DSF Fac Fac Fac Res Res Active Infowar (turns) 529 | . . . . . . . 39 156 334 . Sensors 529 | . . . . . . . 39 156 334 . Robot Analysis Total . | . . . . . . . . . . . Derelict Logs Recovered . | . . . . . . . . . . . Drone Launches 1 | . . . . . . . . . 1 . Drone Recoveries 1 | . . . . . . . . . 1 . Exploration | -11 -10 -9 -8 -7 -7 -6 -5 -4 -3 -2 ------------- Run | Yrd Mat Mat Mat Fac DSF Fac Fac Fac Res Res Turns Passed 1228 | 11 40 187 95 13 51 78 83 156 361 153 Spaces Moved 3576 | 21 76 288 241 38 97 298 334 527 1120 536 Core 410 | 21 76 258 . . . . . . . 55 Treads . | . . . . . . . . . . . Legs . | . . . . . . . . . . . Wheels . | . . . . . . . . . . . Hover . | . . . . . . . . . . . Flight 3166 | . . 30 241 38 97 298 334 527 1120 481 Fastest Speed 17 | 50 50 37 32 32 23 23 23 17 18 20 Average Speed 27 | 50 50 48 34 32 28 23 23 18 26 26 Slowest Speed 106 | 50 50 50 37 32 32 23 23 23 106 50 Overloaded Moves 20 | . . . . . 20 . . . . . Propulsion Burnouts . | . . . . . . . . . . . Robots Hopped 51 | . . . 5 . . . 2 3 13 28 Potential Cave-ins . | . . . . . . . . . . . Cave-ins Triggered 1 | . . . . . . . . 1 . . Exploration Rate (%) 24 | 3 19 47 26 3 79 11 14 17 32 19 Regions Visited 10 Branch Regions . Pre-discovered Areas . | . . . . . . . . . . . Known Exits Taken 6 | . 1 . 1 1 . 1 1 . 1 . Unknown Exits Taken 3 | 1 . 1 . . . . . 1 . . Scrap Searched . | . . . . . . . . . . . Spaces Dug 14 | . . . 2 . . . . 8 4 . Terrain Destroyed 45 | . . . 2 . . . . 39 4 . Melee 14 | . . . 2 . . . . 8 4 . Projectile . | . . . . . . . . . . . AOE 31 | . . . . . . . . 31 . . Terrain Rammed . | . . . . . . . . . . . Walls Destroyed . | . . . . . . . . . . . Machines Disabled . | . . . . . . . . . . . Actions | -11 -10 -9 -8 -7 -7 -6 -5 -4 -3 -2 --------- Run | Yrd Mat Mat Mat Fac DSF Fac Fac Fac Res Res Total 3689 | 20 76 320 242 38 119 304 335 557 1161 517 Wait 13 | . . 3 . . 3 . . 1 6 . Move 3471 | 20 75 287 230 38 96 297 329 520 1093 486 Hop 45 | . . . 5 . . . 2 3 13 22 Pick Up 24 | . . 5 2 . 3 1 1 3 9 . Fast Attach 37 | . 1 5 2 . 3 4 1 3 16 2 Attach 20 | . . 2 . . 2 1 1 5 8 1 Detach 5 | . . 1 . . . . . 2 2 . Swap 4 | . . . . . 2 1 . . 1 . Drop 15 | . . 1 . . 4 . . 2 7 1 Fire 8 | . . . . . . . . 8 . . Melee 28 | . . 8 3 . . . 1 10 6 . Ram 13 | . . 8 . . . . . . . 5 Kick . | . . . . . . . . . . . Crush . | . . . . . . . . . . . Escape Stasis 6 | . . . . . 6 . . . . . Rewire . | . . . . . . . . . . . Trap . | . . . . . . . . . . . Miscellaneous . | . . . . . . . . . . . Route ------- -11/Scrapyard -10/Materials (discovered 3 exits: *Mat x3) -9/Materials -8/Materials -7/Factory -7/DSF -6/Factory -5/Factory -4/Factory -3/Research -2/Research (discovered 3 exits: Acc x3) History --------- Turn | Location | Event 3 | -11/Scrapyard | Discovered new exit (range 15) 12 | -11/Scrapyard | Entered Materials 13 | -10/Materials | Identified exit to Materials 52 | -10/Materials | Entered another Materials area 52 | -9/Materials | Evolved 2 slots: Propulsion x1, Utility x1 180 | -9/Materials | Core integrity fell below 50% 237 | -9/Materials | Discovered new exit (range 5) 239 | -9/Materials | Entered another Materials area 239 | -8/Materials | Evolved 2 slots: Propulsion x1, Utility x1 330 | -8/Materials | Discovered new exit (range 13) 334 | -8/Materials | Identified exit to Factory 334 | -8/Materials | Entered Factory 334 | -7/Factory | Evolved 2 slots: Utility x2 347 | -7/Factory | Identified exit to DSF 347 | -7/Factory | Entered DSF 360 | -7/DSF | Additional patrols routed to DSF 395 | -7/DSF | Discovered new exit (range 11) 398 | -7/DSF | Identified exit to Factory 398 | -7/DSF | Entered Factory 398 | -6/Factory | Evolved 2 slots: Propulsion x1, Utility x1 469 | -6/Factory | Discovered new exit (range 15) 476 | -6/Factory | Identified exit to Factory 476 | -6/Factory | Entered another Factory area 476 | -5/Factory | Evolved 2 slots: Power x1, Propulsion x1 557 | -5/Factory | Discovered new exit (range 9) 559 | -5/Factory | Identified exit to Factory 559 | -5/Factory | Entered another Factory area 559 | -4/Factory | Evolved 2 slots: Propulsion x1, Utility x1 699 | -4/Factory | Crushed by falling debris 714 | -4/Factory | Discovered new exit (range 5) 715 | -4/Factory | Entered Research 715 | -3/Research | Evolved 2 slots: Utility x2 730 | -3/Research | Lost 3 parts (3u) 752 | -3/Research | Spotted B-86 Titan 775 | -3/Research | Spotted B-86 Titan 825 | -3/Research | Lost 7 parts (1p4n2u) 825 | -3/Research | Found Prototype Processor 834 | -3/Research | Spotted B-90 Cyclops 921 | -3/Research | Identified Exp. Target Analyzer 1073 | -3/Research | Discovered new exit (range 14) 1076 | -3/Research | Identified exit to Research 1076 | -3/Research | Entered another Research area 1076 | -2/Research | Evolved 2 slots: Propulsion x1, Utility x1 1088 | -2/Research | Lost 8 parts (2p4n2u) 1099 | -2/Research | Spotted B-90 Cyclops 1125 | -2/Research | Identified exit to Access 1161 | -2/Research | Spotted B-90 Cyclops 1211 | -2/Research | System corruption reached 10% 1213 | -2/Research | Core integrity fell below 50% 1224 | -2/Research | Core integrity fell below 20% 1229 | -2/Research | Destroyed by C-57 Dissector with Dual-blade Saw Last Messages --------------- 01217_ Slug penetrates Wall. 01217_ Penetrated by Slug. 01219_ Imp. Signal Interpreter severed. 01219_ Hacking Suite severed. 01220_ Slug penetrates Wall. 01221_ Penetrated by Slug. 01222_ Slammed into H-88 Terminator. 01222_ Destabilizing: System corrupted (+1). 01223_ Penetrated by Slug. 01224_ ALERT: Potential suspicious activity detected, Programmers report to Research Zone 3M. 01224_ Penetrated by Slug. 01226_ Slammed into C-57 Dissector. 01226_ Destabilizing: System corrupted (+1). 01227_ Penetrated by Slug. 01227_ Slammed into C-57 Dissector. 01227_ Adv. Signal Interpreter destroyed. 01227_ System corrupted by crushing effect (+2). 01227_ Penetrated by Slug. 01228_ Slammed into C-57 Dissector. Map ----- +----------------------------------------------------+ | ??????????????????????# #???????? #??? ???? | | ??????????????????????# #???????? #?? ????? | | ??????????????????????# #???????? ### ?????? | | ??????????????????????# ##+##+#??# ##+####? | | ??????????????????????# ^ #??# ! +? | | ??????????????????????# #?? =% #???? | | ??????????????????????# #### #???? | | ??????????????????????# #???? | | ??????????????????????# ########## # ## #???? | | ??????????????????????# #???????? ####/##### | | ??????????????????????# #???????? ## | | ??????????????????????# #??????? ## | | ??????????????????????# #??????? "" ## ! | | ??????????????????????# #?????? "" ## | | ??????????????????????# #?????? "" ## | | ??????????????????????# +?????" S ## | | ??????????????????????# p #????? "? ## "" "" | | ??????????????????????## p##???? ?? ## """"" | | ???????????????????????# p#????? ??? ########## | | ???????????????????????#R #????? ??? ########?? | | ???????????????????????# #???? ????? # #?? | | ???????????????????????# p#??????#?????## #?? | | ???????????????????????# #?????????????# #?# | | ???????????????????????#wc#?????????????# !#?# | | ???????????????????????#cc#?????????????# #?# | | ???????????????????????#h@########???????? ??# | | ???????????????????????# h +?????###+###?# | | ?????????????????????###+#########???????# #?# | | ?????????????????????# #?????????# ### | | ?????????????????????# * #?????????# " = | | ?????????????????????# #?######### | | ?????????????????????#""" #?# ## | | ?????????????????????#""" #?# ### #### | | ?????????????????????#""" #?# #?# #?## | | ?????????????????????# #?# #?# #?# | | ?????????????????????# #?# #?# #?# | | ?????????????????????###########?# #?# ### | | ?????????????????????????????????##+###+## ## | | ??????????????????????????????????# # ## | | ??????????????????????????????????# # ! ##? | | ??????????????????????????????????# # #?? | | ??????????????????????????????????# ###### | | ??????????????????????????????????# ######## ##### | | ??????????????????????????????????# #???? | | ??????????????????????????????????# #???? | | ??????????????????????????????????# #??## | | ??????????????????????????????????# #####??# | | ??????????????????????????????????# #??????# | | ??????????????????????????????????# #??????# | | ??????????????????????????????????# ######## | +----------------------------------------------------+ Best States ------------- Heat Dissipation 77 Energy Generation 41 Energy Capacity 260 Matter Stores 300 Matter Capacity 300 Sight Range 16 Robot Scan Range 15 Terrain Scan Density 10 Corruption Containment 12 Evasion (%) 75 Target Analysis 10 Offensive Hacking 20 Defensive Hacking 30 Item Schematics ----------------- None Robot Schematics ------------------ None Fabricated ------------ Nothing Repaired ---------- Nothing Studied --------- None Alien Tech Used ----------------- None Achievements -------------- None Challenges ------------ None Game ------ Seed ShockNeutrinoManipulator Manual? 0 Play Time 00:43:54 Cumulative 90.6 hours Start 2026.01.22 @ 20:35:03 End 2026.01.22 @ 21:16:34 Sessions 1 Manual Loads 0 Difficulty Rogue Special Mode None Game No. 36 Rogue 36 Adventurer 0 Explorer 0 Win Type - Total 2 Types 1/0/1/0/0/0/0/0/0/0 Lore% 46 Gallery% 53 Achievement% 44 Wizard Run 0 Options --------- Layout 0 ASCII 0 Keyboard 1 Movement Arrows Keybinds 0 Fullscreen 1 Font 18/SmallcapsGlow Map View 76x50 Zoom Use 0% Tactical HUD 1 Map Filters NONE Filters NONE Steam 1 RUN: db64fa54-133f-4024-aa18-a7b78be11600